[Event "40th Cappelle Open 2024"]
[Site "Cappelle-la-Grande"]
[Date "2024.03.06"]
[Round "7.7"]
[White "Zylka, Stanislaw"]
[Black "Bellahcene, Bilel"]
[Result "1/2-1/2"]
[ECO "E16"]
[WhiteElo "2401"]
[BlackElo "2522"]
[Annotator "TA"]
[PlyCount "66"]
[EventDate "2024.03.02"]
[EventType "swiss"]
[EventCountry "FRA"]
[SourceTitle "playchess.com"]
[Source "ChessBase"]
[SourceQuality "1"]
[TimeControl "40/5400+30:1800+30"]

{[%evp 11,66,15,10,15,18,13,14,0,0,-8,0,-10,-9,-10,-10,-10,0,-23,-12,-23,-17,-29,-20,-25,-29,-23,-18,-20,-11,-45,-10,-13,-12,-14,-11,-6,-14,-16,0,-22,-20,-27,-28,-25,-23,-18,-20,-22,-15,-65,0,0,0,0,22,16,22]} 1. d4 {[%emt 0:00:04]} Nf6 {[%emt 0:12:10]} 2. c4 {[%emt 0:00:20]} e6 {[%emt 0:00:03]} 3. Nf3 {[%emt 0:00:11]} b6 {[%emt 0:00:46]} 4. g3 {[%emt 0:00:28]} Bb7 {[%emt 0:00:02]} 5. Bg2 {[%emt 0:00:09]} Bb4+ {[%emt 0:00:02]} 6. Bd2 {[%emt 0:04:28]} Be7 {[%emt 0:00:04]} 7. O-O {[%emt 0:00:29]} c6 {[%emt 0:00:33]} 8. Nc3 {[%emt 0:01:39]} d5 {[%emt 0:03:39]} 9. cxd5 {[%emt 0:11:27]} cxd5 {[%emt 0:00:27]} 10. Bf4 {[%emt 0:00:28]} O-O {[%emt 0:01:04]} 11. Bxb8 {[%emt 0:14:58]} Rxb8 {[%emt 0:00:34]} 12. Ne5 {[%emt 0:01:21]} a6 {[%emt 0:00:22]} 13. e3 {[%emt 0:01:15]} Bd6 {[%emt 0:02:38]} 14. Nd3 {[%emt 0:05:08]} Qe7 {[%emt 0:01:28]} 15. a3 {[%emt 0:00:42]} Rfc8 {[%emt 0:01:15]} 16. f3 {[%emt 0:21:22]} Nd7 {[%emt 0:15:56]} 17. Rf2 {[%emt 0:03:02]} b5 {[%emt 0:03:22]} 18. Qe1 {[%emt 0:13:37]} Bc6 {[%emt 0:12:40]} 19. b4 {[%emt 0:05:44]} Ra8 {[%emt 0:01:26]} 20. Bf1 {[%emt 0:00:11]} e5 {[%emt 0:04:29]} 21. f4 {[%emt 0:02:51]} exd4 {[%emt 0:08:00]} 22. exd4 {[%emt 0:00:06]} Qd8 {[%emt 0:00:11]} 23. Bh3 {[%emt 0:01:38]} Rc7 {[%emt 0:00:35]} 24. Bxd7 {[%emt 0:02:24]} Rxd7 {[%emt 0:06:45]} 25. Ne5 {[%emt 0:02:53]} Rc7 {[%emt 0:02:25]} 26. Rc1 {[%emt 0:05:25]} ({Viel schwächer wäre} 26. Nxc6 Rxc6 27. Re2 (27. Nxd5 Bf8 $17) 27... Bf8 $17) 26... Bb7 {[%emt 0:00:20]} 27. Nd3 {[%emt 0:01:09]} Rc4 {[%emt 0:00:24]} 28. Qe3 {[%emt 0:00:28]} Qe8 {[%emt 0:04:36]} 29. Ne5 {[%emt 0:00:06]} Rc7 {[%emt 0:00:43] [#] Und jetzt ...f6 wäre schön.} 30. Re1 {[%emt 0:00:47]} (30. Re2 $11) 30... Rac8 {[%emt 0:01:16]} ({Besser ist} 30... f6 $15 31. Nf3 Qxe3 32. Rxe3 Rac8) 31. Nd1 $11 {[%emt 0:00:06] Die Stellung ist ausgeglichen.} Re7 {[%emt 0:08:28] Droht stark ...f6.} 32. Qd2 $1 {[%emt 0:00:01]} Rcc7 {[%emt 0:02:11]} 33. Rfe2 {[%emt 0:00:09]} Qc8 {[%emt 0:06:17] Gewichteter Fehlerwert: Weiß=0.08 (makellos) /Schwarz=0.07 (makellos) .  Fehler:       	Weiß=1     	Schwarz=1     Ungenau:       	Weiß=1     	Schwarz=1     OK:         	Weiß=5     	Schwarz=9     Stark:        	Weiß=1     	---} 1/2-1/2

[Event "40th Cappelle Open 2024"]
[Site "Cappelle-la-Grande"]
[Date "2024.03.06"]
[Round "7.8"]
[White "Samani, Yamac"]
[Black "Valsecchi, Alessio"]
[Result "0-1"]
[ECO "C11"]
[WhiteElo "2378"]
[BlackElo "2490"]
[Annotator "RC"]
[PlyCount "58"]
[EventDate "2024.03.02"]
[EventType "swiss"]
[EventCountry "FRA"]
[SourceTitle "playchess.com"]
[Source "ChessBase"]
[SourceQuality "1"]
[TimeControl "40/5400+30:1800+30"]

1. e4 {[%emt 0:00:06]} e6 {[%emt 0:04:26]} 2. d4 {[%emt 0:00:28]} d5 {[%emt 0:00:05]} 3. Nc3 {[%emt 0:00:35]} Nf6 {[%emt 0:00:13]} 4. e5 {[%emt 0:00:09]} Nfd7 {[%emt 0:00:06]} 5. f4 {[%emt 0:00:06]} c5 {[%emt 0:00:08]} 6. Nf3 {[%emt 0:00:06]} Nc6 {[%emt 0:00:06]} 7. Be3 {[%emt 0:00:07]} a6 {[%emt 0:00:08]} 8. Qd2 {[%emt 0:01:01]} b5 {[%emt 0:01:48]} 9. a3 {[%emt 0:03:51]} Rb8 {[%emt 0:01:13]} 10. dxc5 {[%emt 0:04:11]} Bxc5 {[%emt 0:02:40]} 11. Bxc5 {[%emt 0:01:28]} Nxc5 {[%emt 0:00:06]} 12. b4 {[%emt 0:01:34]} Nd7 {[%emt 0:05:36]} 13. Bd3 {[%emt 0:02:41]} Qb6 {[%emt 0:00:50]} 14. Ne2 {[%emt 0:03:00]} f6 {[%emt 0:06:11]} 15. exf6 {[%emt 0:10:42]} Nxf6 {[%emt 0:00:27]} 16. c3 {[%emt 0:07:41]} O-O {[%emt 0:01:02]} 17. Ned4 {[%emt 0:05:34]} Ne4 {[%emt 0:10:55]} 18. Bxe4 {[%emt 0:02:17]} dxe4 {[%emt 0:00:16]} 19. Ne5 {[%emt 0:15:49]} Nxe5 {[%emt 0:02:26]} 20. fxe5 {[%emt 0:00:07]} Bb7 {[%emt 0:00:33]} 21. a4 {[%emt 0:06:57]} Bd5 {[%emt 0:03:07]} 22. Qe3 {[%emt 0:04:04]} Qc7 {[%emt 0:07:17]} 23. axb5 {[%emt 0:00:42]} axb5 {[%emt 0:00:07]} 24. Qg3 {[%emt 0:03:59]} Rf3 {[%emt 0:04:43]} 25. gxf3 {[%emt 0:05:26]} Qxc3+ {[%emt 0:00:33]} 26. Kf2 {[%emt 0:00:36]} Qxd4+ {[%emt 0:00:22]} 27. Kg2 {[%emt 0:00:06]} exf3+ {[%emt 0:00:55]} 28. Kh3 {[%emt 0:00:05]} Be4 {[%emt 0:00:58]} 29. Qh4 {[%emt 0:01:21]} Qxe5 {[%emt 0:01:07]} 0-1

[Event "40th Cappelle Open 2024"]
[Site "Cappelle-la-Grande"]
[Date "2024.03.06"]
[Round "7.9"]
[White "Girel, Joseph"]
[Black "Tahay, Alexis"]
[Result "1/2-1/2"]
[ECO "B92"]
[WhiteElo "2486"]
[BlackElo "2382"]
[Annotator "TA"]
[PlyCount "100"]
[EventDate "2024.03.02"]
[EventType "swiss"]
[EventCountry "FRA"]
[SourceTitle "playchess.com"]
[Source "ChessBase"]
[SourceQuality "1"]
[TimeControl "40/5400+30:1800+30"]

{[%evp 32,100,35,-16,-22,-74,-46,-48,-20,-48,-35,-59,-40,-60,-63,-121,-93,-150,-58,-88,-57,-76,-54,-45,-25,-130,-130,-154,-147,-454,-99,-83,-105,-93,-66,-69,-72,-61,-62,-71,-68,-51,-67,-58,-59,-110,-69,-203,-193,-185,-198,-161,-119,-187,-187,-361,-352,-298,0,0,0,0,0,0,0,0,0,0,0,0,0]} 1. e4 {[%emt 0:00:06]} c5 {[%emt 0:00:04]} 2. Nf3 {[%emt 0:00:20]} d6 {[%emt 0:00:03]} 3. d4 {[%emt 0:00:25]} cxd4 {[%emt 0:00:03]} 4. Nxd4 {[%emt 0:00:13]} Nf6 {[%emt 0:00:04]} 5. Nc3 {[%emt 0:00:16]} a6 {[%emt 0:00:32]} 6. Be2 {[%emt 0:01:08]} e5 {[%emt 0:00:07]} 7. Nb3 {[%emt 0:00:16]} Be7 {[%emt 0:00:04]} 8. O-O {[%emt 0:00:35]} O-O {[%emt 0:00:04]} 9. Qd3 {[%emt 0:00:12]} Be6 {[%emt 0:00:37]} 10. Bd2 {[%emt 0:00:20] B92: Sizilianisch (Najdorf-Variante mit 6.Le2).} Nbd7 $1 {[%emt 0:03:03] 10...Nbd7 punktet besser als 10...Nc6.} 11. Nd5 {[%emt 0:00:36]} Bxd5 {[%emt 0:00:02]} 12. exd5 {[%emt 0:00:12]} b6 {[%emt 0:04:47]} 13. a4 {[%emt 0:05:26]} a5 {[%emt 0:00:34]} 14. Qh3 {[%emt 0:01:51]} Rc8 {[%emt 0:04:18]} 15. c4 {[%emt 0:04:54]} Ne8 $146 {[%emt 0:06:39]} ({Predecessor:} 15... Re8 16. f4 Bf8 17. Rae1 g6 18. f5 Bg7 19. Bg5 Qc7 20. Qh4 Rf8 21. Kh1 Rce8 {1-0 Krzyzanowski,M (2512)-Kosakowski,J (2494) POL-chT Ekstraliga 2023 (7.5)}) 16. Kh1 {[%emt 0:12:21]} g6 {[%emt 0:06:56]} 17. g4 {[%emt 0:06:00]} (17. f4 $14) 17... Bg5 $11 {[%emt 0:02:47]} 18. Bc3 {[%emt 0:00:19]} (18. Rae1 $11) 18... Nef6 {[%emt 0:02:54]} 19. Qg2 {[%emt 0:03:51]} h6 {[%emt 0:08:54]} 20. Rfd1 {[%emt 0:05:02]} Kg7 {[%emt 0:09:22]} 21. Ra3 {[%emt 0:08:26]} Qe8 {[%emt 0:08:48]} 22. Rg1 {[%emt 0:04:01]} Rh8 {[%emt 0:05:54]} 23. Qf1 {[%emt 0:05:48]} ({Vorzuziehen ist} 23. Rf1 $15) 23... Qe7 {[%emt 0:02:33]} 24. Nd2 {[%emt 0:03:46]} ({Weiss kommt nicht vorbei an} 24. f3) 24... Nc5 {[%emt 0:06:32]} (24... h5 $1 $17 {[%cal Rh5g4] ...hxg4 ist eine echte Drohung.} 25. f4 Bxf4) 25. Bd1 {[%emt 0:05:28]} Bf4 {[%emt 0:03:21]} 26. Bc2 {[%emt 0:06:28]} Qd7 {[%emt 0:06:09]} 27. Qe2 {[%emt 0:02:28]} Nh7 {[%emt 0:07:58]} 28. Ne4 {[%emt 0:03:26] [#]} (28. Rg2 $11 {hält das Gleichgewicht.}) 28... Nxe4 $1 $17 {[%emt 0:00:31]} 29. Bxe4 {[%emt 0:01:50]} h5 {[%emt 0:02:27]} 30. Qf3 $2 {[%emt 0:09:16][%mdl 8192]} (30. gxh5 $2 Nf6 (30... Ng5 $2 31. Rxg5 Bxg5 32. Bf3 $19) 31. Bf3 Nxh5 $19 (31... Qh3 32. Rg2 $17)) (30. g5 $17 {nur so!}) 30... Nf6 $2 {[%emt 0:00:36]} (30... Bxh2 $19 {und Schwarz behält klar die Oberhand.} 31. Kxh2 hxg4) 31. g5 $17 {[%emt 0:01:59]} Nxe4 {[%emt 0:00:03]} 32. Qxe4 {[%emt 0:00:09]} Qf5 {[%emt 0:00:06]} 33. Qxf5 {[%emt 0:02:19]} gxf5 {[%emt 0:00:01]} 34. Rb3 {[%emt 0:01:45]} Rb8 $1 {[%emt 0:03:28]} (34... Rxc4 35. Rxb6 Rd8 (35... Rxa4 36. Rxd6 Ra8 37. Rf6 $16) 36. g6 fxg6 (36... Rxa4 37. Rb7 $16) 37. Bxa5 $11) 35. Rb5 {[%emt 0:01:05]} Rhc8 {[%emt 0:00:47]} 36. b3 {[%emt 0:01:16]} h4 $1 {[%emt 0:00:01]} 37. h3 {[%emt 0:01:15]} Kg6 {[%emt 0:00:02]} 38. Be1 {[%emt 0:01:45]} (38. Rb1 $15) 38... Kh5 {[%emt 0:00:52]} (38... Bxg5 $6 39. f3 $14 (39. f4 exf4 40. Bxh4 f6 $11)) 39. f3 {[%emt 0:00:41]} (39. Kg2 $15) 39... Be3 $19 {[%emt 0:00:12]} (39... Bxg5 40. Bf2 $11) 40. Rg2 {[%emt 0:00:25]} Rc5 {[%emt 0:07:31]} (40... Bxg5 41. Bf2 $11) 41. Re2 {[%emt 0:32:02]} Bd4 {[%emt 0:10:39]} (41... Bxg5 42. Bf2 Rxb5 43. cxb5 $16) 42. Rc2 {[%emt 0:00:00]} (42. Kg2 $17) 42... Kxg5 $19 {[%emt 0:04:25]} 43. Bxa5 $2 {[%emt 0:00:00] [#]} (43. b4 Rxb5 44. Bd2+ f4 45. cxb5) 43... Kf4 $1 $19 {[%emt 0:04:48]} 44. Rxb6 {[%emt 0:00:00]} (44. Bxb6 Rxb5 45. Bxd4 Rxb3 $19) 44... Rxb6 $2 {[%emt 0:03:14]} (44... Rg8 $19 45. b4 Rcc8 (45... Rxa5 46. bxa5 Rg1+ 47. Kh2 $11) 46. Rxd6 Rg1+ 47. Kh2 Rb1) 45. Bxb6 $11 {[%emt 0:00:00]} Rc8 {[%emt 0:00:01]} 46. c5 $1 {[%emt 0:00:00]} Kxf3 {[%emt 0:02:32]} 47. a5 $1 {[%emt 0:00:00]} Ke4 {[%emt 0:05:28]} (47... Bxc5 $2 {ist das falsche Schlagen.} 48. b4 $18) 48. b4 {[%emt 0:00:00]} Kxd5 {[%emt 0:00:11]} 49. cxd6 $1 {[%emt 0:03:19]} Rxc2 {[%emt 0:00:09]} 50. d7 $1 {[%emt 0:00:05]} Rc1+ {[%emt 0:00:03]} 1/2-1/2

[Event "40th Cappelle Open 2024"]
[Site "Cappelle-la-Grande"]
[Date "2024.03.06"]
[Round "7.10"]
[White "Jablonicky, Martin"]
[Black "Vlachos, Anatole"]
[Result "1/2-1/2"]
[ECO "D02"]
[WhiteElo "2393"]
[BlackElo "2479"]
[Annotator "RC"]
[PlyCount "90"]
[EventDate "2024.03.02"]
[EventType "swiss"]
[EventCountry "FRA"]
[SourceTitle "playchess.com"]
[Source "ChessBase"]
[SourceQuality "1"]
[TimeControl "40/5400+30:1800+30"]

1. d4 {[%emt 0:00:02]} d5 {[%emt 0:00:04]} 2. Nf3 {[%emt 0:00:06]} Nf6 {[%emt 0:00:05]} 3. Bf4 {[%emt 0:00:04]} e6 {[%emt 0:00:52]} 4. e3 {[%emt 0:00:05]} Bd6 {[%emt 0:00:03]} 5. Bg3 {[%emt 0:00:04]} O-O {[%emt 0:00:11]} 6. Nbd2 {[%emt 0:03:25]} c5 {[%emt 0:00:09]} 7. c3 {[%emt 0:00:04]} Qc7 {[%emt 0:00:06]} 8. dxc5 {[%emt 0:00:03]} Qxc5 {[%emt 0:00:15]} 9. Bd3 {[%emt 0:00:07]} Nbd7 {[%emt 0:01:20]} 10. Qc2 {[%emt 0:07:31]} h6 {[%emt 0:15:15]} 11. O-O {[%emt 0:10:30]} Bxg3 {[%emt 0:00:38]} 12. hxg3 {[%emt 0:00:07]} b6 {[%emt 0:09:59]} 13. c4 {[%emt 0:20:58]} Bb7 {[%emt 0:01:44]} 14. Rac1 {[%emt 0:02:30]} Rfc8 {[%emt 0:03:13]} 15. Qb1 {[%emt 0:00:24]} Qe7 {[%emt 0:04:11]} 16. cxd5 {[%emt 0:03:35]} Nxd5 {[%emt 0:00:07]} 17. Rxc8+ {[%emt 0:00:14]} Rxc8 {[%emt 0:00:04]} 18. Rc1 {[%emt 0:00:15]} Nc5 {[%emt 0:00:21]} 19. Bf1 {[%emt 0:03:30]} Qf6 {[%emt 0:01:57]} 20. e4 {[%emt 0:02:00]} Nb4 {[%emt 0:09:47]} 21. a3 {[%emt 0:01:22]} Nc6 {[%emt 0:00:07]} 22. Nc4 {[%emt 0:09:49]} Rd8 {[%emt 0:04:18]} 23. e5 {[%emt 0:04:45]} Qe7 {[%emt 0:01:01]} 24. b4 {[%emt 0:00:05]} Nd7 {[%emt 0:00:32]} 25. Rd1 {[%emt 0:09:14]} Nf8 {[%emt 0:01:12]} 26. Bd3 {[%emt 0:06:55]} g6 {[%emt 0:04:26]} 27. Be4 {[%emt 0:02:22]} Rxd1+ {[%emt 0:00:21]} 28. Qxd1 {[%emt 0:00:02]} Nxe5 {[%emt 0:00:52]} 29. Nfxe5 {[%emt 0:00:05]} Bxe4 {[%emt 0:00:08]} 30. Nd6 {[%emt 0:00:40]} f6 {[%emt 0:17:34]} 31. Nxe4 {[%emt 0:01:31]} fxe5 {[%emt 0:00:04]} 32. Qd2 {[%emt 0:00:05]} g5 {[%emt 0:03:44]} 33. Qc3 {[%emt 0:03:17]} Qd8 {[%emt 0:00:10]} 34. Kh2 {[%emt 0:01:42]} Ng6 {[%emt 0:05:10]} 35. Qc6 {[%emt 0:00:13]} Qe7 {[%emt 0:00:05]} 36. Kg1 {[%emt 0:02:02]} Kg7 {[%emt 0:01:24]} 37. Nd6 {[%emt 0:01:00]} Qd8 {[%emt 0:03:45]} 38. Ne8+ {[%emt 0:05:49]} Kf8 {[%emt 0:01:18]} 39. Nd6 {[%emt 0:00:41]} Kg7 {[%emt 0:01:48]} 40. Ne8+ {[%emt 0:01:02]} Kf8 {[%emt 0:00:06]} 41. Nd6 {[%emt 0:30:16]} Kg8 {[%emt 0:42:34]} 42. Ne4 {[%emt 0:02:59]} Qe7 43. Kf1 {[%emt 0:00:30]} Kg7 44. Ke2 {[%emt 0:00:30]} Qd8 45. Qc7+ {[%emt 0:00:30]} Kf8 1/2-1/2

[Event "40th Cappelle Open 2024"]
[Site "Cappelle-la-Grande"]
[Date "2024.03.06"]
[Round "7.11"]
[White "Panjwani, Raja"]
[Black "Molenda, Marcin"]
[Result "1-0"]
[ECO "A13"]
[WhiteElo "2468"]
[BlackElo "2377"]
[Annotator "TA"]
[PlyCount "75"]
[EventDate "2024.03.02"]
[EventType "swiss"]
[EventCountry "FRA"]
[SourceTitle "playchess.com"]
[Source "ChessBase"]
[SourceQuality "1"]
[TimeControl "40/5400+30:1800+30"]

{[%evp 14,74,29,16,16,11,17,10,11,15,31,0,0,0,0,0,0,0,0,0,0,-8,-17,-17,32,11,29,25,50,53,63,52,47,59,54,62,59,68,54,42,54,48,118,106,347,342,390,381,685,683,762,761,719,713,29978,29979,29976,29977,29996,29997,29997,29998,29999]} 1. Nf3 {[%emt 0:00:04]} d5 {[%emt 0:00:29]} 2. g3 {[%emt 0:00:11]} Nf6 {[%emt 0:01:43]} 3. Bg2 {[%emt 0:00:12]} c5 {[%emt 0:00:34]} 4. O-O {[%emt 0:00:19]} e6 {[%emt 0:02:21]} 5. c4 {[%emt 0:00:20]} d4 {[%emt 0:00:22]} 6. e3 {[%emt 0:00:09]} Nc6 {[%emt 0:00:12]} 7. exd4 {[%emt 0:00:08]} cxd4 {[%emt 0:00:05]} 8. d3 {[%emt 0:00:08]} Bd6 {[%emt 0:00:56]} 9. Bg5 {[%emt 0:00:11]} h6 {[%emt 0:00:06]} 10. Bxf6 {[%emt 0:00:06]} Qxf6 {[%emt 0:00:05] The position is equal.} 11. Nbd2 {[%emt 0:00:10]} Qe7 {[%emt 0:00:05]} 12. Re1 {[%emt 0:00:39]} O-O {[%emt 0:01:34]} 13. a3 {[%emt 0:00:12]} a5 {[%emt 0:00:55]} 14. Nb3 {[%emt 0:00:10]} Qf6 {[%emt 0:03:48]} (14... e5 $6 15. Nfxd4 Nxd4 16. Nxd4 $16) 15. c5 {[%emt 0:04:49]} Bc7 {[%emt 0:00:40]} 16. Rc1 {[%emt 0:01:13]} Rd8 {[%emt 0:03:12]} 17. Nfd2 {[%emt 0:12:12]} Bd7 {[%emt 0:05:57]} 18. Nc4 {[%emt 0:08:49]} Be8 {[%emt 0:02:16]} (18... Qe7 $11 {is more appropriate.}) 19. Nbd2 $14 {[%emt 0:02:00]} Qe7 {[%emt 0:01:57]} 20. Ne4 {[%emt 0:00:24]} Rab8 {[%emt 0:00:57]} 21. f4 {[%emt 0:17:11]} b5 {[%emt 0:04:58]} 22. cxb6 {[%emt 0:01:01]} Bxb6 {[%emt 0:00:06] [#]} 23. f5 $1 {[%emt 0:00:16]} Bc7 {[%emt 0:03:51]} (23... exf5 $2 24. Ned6 Qc7 (24... Qd7 $2 25. Qa4 $18) 25. Rxe8+ (25. Nxf5 Bc5 $18) 25... Rxe8 26. Nxe8 Rxe8 27. Qa4 $18 (27. Nxb6 Qxb6 28. Bxc6 Re7 $18)) 24. Ned2 {[%emt 0:21:00] Excellent horsemanship.} Rb5 {[%emt 0:02:59]} 25. fxe6 {[%emt 0:01:39]} fxe6 {[%emt 0:03:07]} 26. Qg4 {[%emt 0:01:24]} (26. Nf3 {simplifies} Rc5 27. Qe2 Bf7 28. Rf1) 26... Ne5 {[%emt 0:07:48]} 27. Nxe5 {[%emt 0:00:08]} Bxe5 {[%emt 0:00:16]} ({Black should try} 27... Rxe5 $14 28. Rxe5 Bxe5) 28. Bc6 $16 {[%emt 0:07:27] White is more active.} (28. a4 {simplifies} Rxb2 29. Nc4 Rxg2+ 30. Kxg2 Bf6 31. Qxe6+ Qxe6 32. Rxe6 Bxa4 33. Nxa5 Bd7 34. Ree1) 28... Rxb2 {[%emt 0:08:07] This costs Black the game.} (28... h5 $16 {might work better.} 29. Qe4 Bxc6 30. Rxc6 Rf8) 29. Nc4 $18 {[%emt 0:00:17]} Bxc6 {[%emt 0:00:02]} 30. Nxb2 {[%emt 0:00:15]} Ba8 {[%emt 0:00:01]} (30... Qd6 31. Rxe5 (31. Rxc6 Qxc6 32. Rxe5 Qc3 $18) 31... Qxe5 32. Rxc6 Qe1+ 33. Kg2 Re8 (33... Qd2+ $2 34. Kh3 $18)) 31. Rxe5 {[%emt 0:03:52]} Qb7 {[%emt 0:00:04][%csl Ga8][%cal Rb7g2]} 32. Qxe6+ {[%emt 0:00:15]} Kh8 {[%emt 0:00:19] [#]} 33. Re4 $1 {[%emt 0:00:54]} Qxb2 {[%emt 0:04:00]} (33... Qb8 34. Re2) 34. Rc8 {[%emt 0:00:05] White mates.} Qb1+ {[%emt 0:01:38]} 35. Kf2 {[%emt 0:00:13]} Rxc8 {[%emt 0:00:10]} 36. Qxc8+ {[%emt 0:00:05]} Kh7 {[%emt 0:00:02]} 37. Qf5+ {[%emt 0:00:06]} Kg8 {[%emt 0:00:01]} 38. Re8# {[%emt 0:20:56] Weighted Error Value: White=0.02 (flawless) /Black=0.61.  Loses game:     	---       	Black=1      Mistake:       	---       	Black=3      Inaccurate:     	White=1     	---        OK:         	White=14    	Black=7      Best:        	White=1     	Black=3} 1-0

[Event "40th Cappelle Open 2024"]
[Site "Cappelle-la-Grande"]
[Date "2024.03.06"]
[Round "7.12"]
[White "Nanjo, Ryosuke"]
[Black "Roshka, Yevgeniy"]
[Result "1-0"]
[ECO "B06"]
[WhiteElo "2346"]
[BlackElo "2468"]
[Annotator "RC"]
[PlyCount "177"]
[EventDate "2024.03.02"]
[EventType "swiss"]
[EventCountry "FRA"]
[SourceTitle "playchess.com"]
[Source "ChessBase"]
[SourceQuality "1"]
[TimeControl "40/5400+30:1800+30"]

1. e4 {[%emt 0:00:04]} g6 {[%emt 0:00:03]} 2. d4 {[%emt 0:00:07]} Bg7 {[%emt 0:00:03]} 3. Nc3 {[%emt 0:00:13]} d6 {[%emt 0:00:04]} 4. Be3 {[%emt 0:00:14]} a6 {[%emt 0:00:03]} 5. g4 {[%emt 0:00:25]} b5 {[%emt 0:04:37]} 6. Bg2 {[%emt 0:00:09]} Bb7 {[%emt 0:00:03]} 7. h4 {[%emt 0:00:20]} h6 {[%emt 0:00:42]} 8. g5 {[%emt 0:00:15]} hxg5 {[%emt 0:02:32]} 9. h5 {[%emt 0:00:55]} gxh5 {[%emt 0:01:10]} 10. Rxh5 {[%emt 0:00:14]} Nf6 {[%emt 0:00:31]} 11. Rxh8+ {[%emt 0:04:08]} Bxh8 {[%emt 0:00:04]} 12. Bxg5 {[%emt 0:02:16]} Nbd7 {[%emt 0:03:51]} 13. Qd3 {[%emt 0:24:53]} c5 {[%emt 0:11:53]} 14. Qh3 {[%emt 0:12:21]} Bg7 {[%emt 0:00:25]} 15. e5 {[%emt 0:00:52]} Bxg2 {[%emt 0:00:39]} 16. Qxg2 {[%emt 0:00:48]} dxe5 {[%emt 0:00:30]} 17. dxe5 {[%emt 0:00:20]} Ng8 {[%emt 0:03:34]} 18. Bf6 {[%emt 0:11:15]} Bf8 {[%emt 0:01:25]} 19. Bh8 {[%emt 0:02:55]} Nh6 {[%emt 0:01:22]} 20. e6 {[%emt 0:00:55]} fxe6 {[%emt 0:00:07]} 21. Qg6+ {[%emt 0:02:09]} Nf7 {[%emt 0:00:02]} 22. Nf3 {[%emt 0:02:08]} Qc7 {[%emt 0:01:16]} 23. Ng5 {[%emt 0:01:36]} Qf4 {[%emt 0:00:05]} 24. Nxe6 {[%emt 0:32:58]} Qh2 {[%emt 0:00:10]} 25. Nxf8 {[%emt 0:33:14]} Kxf8 {[%emt 0:05:36]} 26. Bg7+ {[%emt 0:00:28]} Ke8 {[%emt 0:00:01]} 27. O-O-O {[%emt 0:01:40]} Qf4+ {[%emt 0:04:00]} 28. Kb1 {[%emt 0:00:26]} Qf3 {[%emt 0:00:31]} 29. Re1 {[%emt 0:07:46]} Nf8 {[%emt 0:59:41]} 30. Qb6 {[%emt 0:04:21]} Rd8 {[%emt 0:00:27]} 31. Qxa6 {[%emt 0:02:14]} Nd6 {[%emt 0:00:01]} 32. Bxf8 {[%emt 0:02:28]} Kxf8 {[%emt 0:00:08]} 33. Qa7 {[%emt 0:00:19]} Ne4 {[%emt 0:00:33]} 34. a3 {[%emt 0:02:30]} Nxc3+ {[%emt 0:00:23]} 35. bxc3 {[%emt 0:00:03]} Rd1+ {[%emt 0:00:04]} 36. Rxd1 {[%emt 0:00:08]} Qxd1+ {[%emt 0:00:01]} 37. Kb2 {[%emt 0:05:01]} Qd6 {[%emt 0:00:08]} 38. Qb7 {[%emt 0:01:05]} b4 {[%emt 0:01:25]} 39. axb4 {[%emt 0:00:12]} cxb4 {[%emt 0:00:05]} 40. Qxb4 {[%emt 0:00:20]} Qf6 {[%emt 0:00:32]} 41. Qc5 {[%emt 0:31:34]} Qf3 {[%emt 0:30:50]} 42. c4 {[%emt 0:00:32]} Qf6+ {[%emt 0:00:28]} 43. Kb3 {[%emt 0:01:01]} Qf3+ {[%emt 0:00:57]} 44. Kb4 {[%emt 0:00:23]} Qb7+ {[%emt 0:00:04]} 45. Qb5 {[%emt 0:00:16]} Qf3 {[%emt 0:00:05]} 46. Qb8+ {[%emt 0:00:17]} Kf7 {[%emt 0:00:01]} 47. Qg3 {[%emt 0:04:13]} Qb7+ {[%emt 0:00:07]} 48. Kc3 {[%emt 0:00:10]} Qb6 {[%emt 0:01:37]} 49. Qf3+ {[%emt 0:00:26]} Kg7 {[%emt 0:03:04]} 50. Qg4+ {[%emt 0:01:25]} Kf7 {[%emt 0:00:19]} 51. Qf5+ {[%emt 0:01:12]} Kg7 {[%emt 0:00:20]} 52. Qe5+ {[%emt 0:00:00]} Kf7 {[%emt 0:00:00]} 53. Qd5+ {[%emt 0:00:00]} Kf8 {[%emt 0:00:00]} 54. c5 {[%emt 0:00:00]} Qa5+ {[%emt 0:00:00]} 55. Kd3 {[%emt 0:00:00]} Qa3+ {[%emt 0:00:00]} 56. c3 {[%emt 0:00:00]} Qa6+ {[%emt 0:00:00]} 57. Kd2 {[%emt 0:00:00]} Qa5 {[%emt 0:00:00]} 58. Qc4 {[%emt 0:00:00]} Qa7 {[%emt 0:00:00]} 59. Ke2 {[%emt 0:00:00]} Qc7 {[%emt 0:00:00]} 60. c6 {[%emt 0:00:00]} Qe5+ {[%emt 0:00:00]} 61. Kf1 {[%emt 0:00:00]} Qc7 {[%emt 0:00:00]} 62. Kg2 {[%emt 0:00:00]} e6 {[%emt 0:00:00]} 63. Kf3 {[%emt 0:00:00]} e5 {[%emt 0:00:00]} 64. Qb4+ {[%emt 0:08:48]} Kg8 {[%emt 0:00:00]} 65. Qg4+ {[%emt 0:00:00]} Kh8 {[%emt 0:00:00]} 66. Qd7 {[%emt 0:00:00]} e4+ {[%emt 0:00:00]} 67. Kxe4 {[%emt 0:00:00]} Qh2 {[%emt 0:00:00]} 68. Qe8+ {[%emt 0:10:48]} Kh7 {[%emt 0:00:00]} 69. Qe7+ {[%emt 0:00:00]} Kg8 {[%emt 0:00:00]} 70. Qg5+ {[%emt 0:00:00]} Kh7 {[%emt 1:06:51]} 71. Qf5+ {[%emt 0:00:00]} Kg8 {[%emt 0:00:00]} 72. Kd4 {[%emt 0:00:00]} Qh4+ {[%emt 0:00:00]} 73. Kd3 {[%emt 0:00:00]} Qh1 {[%emt 0:00:00]} 74. Qg4+ {[%emt 0:00:00]} Kh8 {[%emt 0:00:00]} 75. Qd4+ {[%emt 0:00:00]} Kg8 {[%emt 0:00:00]} 76. Qc4+ {[%emt 0:14:48]} Kh8 {[%emt 0:00:00]} 77. Kc2 {[%emt 0:00:00]} Qh7+ {[%emt 0:00:00]} 78. Kb2 {[%emt 0:00:00]} Qh2 {[%emt 0:00:00]} 79. Qd4+ {[%emt 0:00:00]} Kg8 {[%emt 0:00:00]} 80. Qg4+ {[%emt 0:00:08]} Kh8 {[%emt 0:00:00]} 81. Qg3 {[%emt 0:00:43]} Qh6 {[%emt 0:00:00]} 82. Qe5+ {[%emt 0:00:59]} Kg8 {[%emt 0:00:00]} 83. Qd5+ {[%emt 0:00:26]} Kh7 {[%emt 0:00:00]} 84. Qd7+ {[%emt 0:16:32]} Kg8 {[%emt 0:00:00]} 85. Qd8+ {[%emt 0:00:52]} Kh7 {[%emt 0:00:00]} 86. c7 {[%emt 0:00:19]} Qb6+ {[%emt 0:00:00]} 87. Kc1 {[%emt 0:00:11]} Qh6+ {[%emt 0:00:00]} 88. Kc2 {[%emt 0:00:07]} Qg6+ {[%emt 0:00:00]} 89. Qd3 {[%emt 0:00:02]} 1-0